{"text_format":"1","workbook":"xlsx","n_sheets":15,"sheets":["Page 1","Page 2","Page 3","Page 4","Additional Weekly Expenses","Additional Assets","Additional Assets (2)","Additional Liabilities","Schedule A (Page 1)","Schedule A (Page 2)","Schedule B","Schedule B (2)","Schedule B (3)","Schedule B (4)","Explanatory Notes"],"not_rendered":{"charts":0,"images":0,"macros":1,"external_links":0,"defined_names":31,"comments":1,"pivot_tables":0},"unopened":[],"bounds":{"document_bytes":16777216,"sheet_cells":100000,"rows_first":2000,"rows_last":500,"rows_between":2000,"halvings":0,"cell_chars":16384,"cell_head_chars":4096},"cells_cut":0,"cells_raw":0,"read":"whole","date_system":"1900"}

{"sheet":"Page 1","index":0,"n_rows":42,"n_cols":51,"rows_kept":42,"cut":false,"hidden":false,"merged":[[31,47,31,55],[39,47,39,55],[40,47,40,55],[41,38,41,55],[39,3,39,32],[37,2,37,8],[38,47,38,55],[32,47,32,55],[33,47,33,55],[34,47,34,55],[35,47,35,55],[36,47,36,55],[34,36,34,44],[7,0,7,55],[10,1,10,14],[36,2,36,21],[36,23,36,40],[38,3,38,32],[35,2,35,14],[35,16,35,40],[31,34,31,40],[33,25,33,40],[17,50,17,54],[16,45,16,48],[17,45,17,48],[28,16,28,40],[8,0,8,22],[8,33,8,56],[12,6,12,25],[19,20,19,54],[16,31,16,43],[18,5,18,24],[17,11,17,29],[17,31,17,43],[16,50,16,54],[9,33,9,56],[9,0,9,22],[9,23,9,32],[12,1,12,4],[12,45,12,48],[10,16,10,55],[11,43,11,54],[11,7,11,32],[12,50,12,54],[12,27,12,43],[0,0,0,56],[1,47,1,55],[1,16,1,39],[2,0,2,56],[5,0,6,56],[1,4,1,12],[3,0,3,55],[4,0,4,55],[14,52,14,54],[14,5,14,17],[13,50,13,54],[13,45,13,48],[13,27,13,43],[13,6,13,25],[30,47,30,55],[30,2,30,8],[15,32,15,54],[14,25,14,36],[15,7,15,25],[16,11,16,29],[25,6,25,40],[23,10,23,40],[23,2,23,8],[22,2,22,6],[29,20,29,40],[26,16,26,40],[27,16,27,40],[30,10,30,40],[21,2,21,8],[25,47,25,55],[26,47,26,55],[27,47,27,55],[28,47,28,55],[29,47,29,55],[20,1,20,55],[21,20,21,40],[22,10,22,40],[21,47,21,55],[22,47,22,55],[23,47,23,55],[24,47,24,55],[24,26,24,40]]}
["Commonwealth of Massachusetts"]
["Division",null,null,null,null,null,null,null,null,null,null,null,null,null,null,null,"The Trial Court",null,null,null,null,null,null,null,null,null,null,null,null,null,null,null,null,null,null,null,null,null,null,null,null,"Docket No."]
["Probate and Family Court Department"]
["FINANCIAL STATEMENT"]
["(Short Form)"]
["INSTRUCTIONS: If your income equals or exceeds $75,000.00 annually, you must complete the LONG FORM financial\nstatement, unless otherwise ordered by the Court."]
[]
[]
[]
["Plaintiff / Petitioner",null,null,null,null,null,null,null,null,null,null,null,null,null,null,null,null,null,null,null,null,null,null,"V.",null,null,null,null,null,null,null,null,null,"Defendant / Petitioner"]
["1.","PERSONAL INFORMATION"]
[null,"Your Name",null,null,null,null,null,null,null,null,null,null,null,null,null,null,null,null,null,null,null,null,null,null,null,null,null,null,null,null,null,null,null,null,"Social Security No."]
[null,"Address"]
[null,null,null,null,null,null,"(Street address)",null,null,null,null,null,null,null,null,null,null,null,null,null,null,null,null,null,null,null,null,"(City / Town)",null,null,null,null,null,null,null,null,null,null,null,null,null,null,null,null,null,"(State)",null,null,null,null,"(Zip)"]
[null,"Tel. No.",null,null,null,null,null,null,null,null,null,null,null,null,null,null,null,null," Date of Birth  ",null,null,null,null,null,null,null,null,null,null,null,null,null,null,null,null,null,null," No. of children living with you  "]
[null,"Occupation",null,null,null,null,null,null,null,null,null,null,null,null,null,null,null,null,null,null,null,null,null,null,null,null," Employer  "]
[null,"Employer's Address"]
[null,null,null,null,null,null,null,null,null,null,null,"(Street address)",null,null,null,null,null,null,null,null,null,null,null,null,null,null,null,null,null,null,null,"(City / Town)",null,null,null,null,null,null,null,null,null,null,null,null,null,"(State)",null,null,null,null,"(Zip)"]
[null,"Tel. No.",null,null,null,null,null,null,null,null,null,null,null,null,null,null,null,null,null,null,null,null,null,null,null,null,null,"Do you have health insurance coverage?"]
[null,"If yes, name of health insurance provider"]
["2.","GROSS WEEKLY INCOME / RECEIPTS FROM ALL SOURCES"]
[null,"a)","Base pay from ",null,null,null,null,null,null,null,null,null,null,null,null,null,null,null,null,null,null,null,null,null,null,null,null,null,null,null,null,null,null,null,null,null,null,null,null,null,null,null,null,null,null,null,"$",0]
[null,"b)","Overtime",null,null,null,null,null,null,null,null,null,null,null,null,null,null,null,null,null,null,null,null,null,null,null,null,null,null,null,null,null,null,null,null,null,null,null,null,null,null,null,null,null,null,null,"$",0]
[null,"c)","Part-time job",null,null,null,null,null,null,null,null,null,null,null,null,null,null,null,null,null,null,null,null,null,null,null,null,null,null,null,null,null,null,null,null,null,null,null,null,null,null,null,null,null,null,null,"$",0]
[null,"d)","Self-employment (attach a completed schedule A)",null,null,null,null,null,null,null,null,null,null,null,null,null,null,null,null,null,null,null,null,null,null,null,null,null,null,null,null,null,null,null,null,null,null,null,null,null,null,null,null,null,null,null,"$",{"$f":"'Schedule A (Page 2)'!T6","v":0}]
[null,"e)","Tips",null,null,null,null,null,null,null,null,null,null,null,null,null,null,null,null,null,null,null,null,null,null,null,null,null,null,null,null,null,null,null,null,null,null,null,null,null,null,null,null,null,null,null,"$",0]
[null,"f)",null,null,null,null,null,null,null,null,null,null,null,null,null,null,null,null,null,null,null,null,null,null,null,null,null,null,null,null,null,null,null,null,null,null,null,null,null,null,null,null,null,null,null,null,"$",0]
[null,"g)",null,null,null,null,null,null,null,null,null,null,null,null,null,null,null,null,null,null,null,null,null,null,null,null,null,null,null,null,null,null,null,null,null,null,null,null,null,null,null,null,null,null,null,null,"$",0]
[null,"h)",null,null,null,null,null,null,null,null,null,null,null,null,null,null,null,null,null,null,null,null,null,null,null,null,null,null,null,null,null,null,null,null,null,null,null,null,null,null,null,null,null,null,null,null,"$",0]
[null,"i)",null,null,null,null,null,null,null,null,null,null,null,null,null,null,null,null,null,null,null,null,null,null,null,null,null,null,null,null,null,null,null,null,null,null,null,null,null,null,null,null,null,null,null,null,"$",0]
[null,"j)","Social Security",null,null,null,null,null,null,null,null,null,null,null,null,null,null,null,null,null,null,null,null,null,null,null,null,null,null,null,null,null,null,null,null,null,null,null,null,null,null,null,null,null,null,null,"$",0]
[null,"k)",null,null,null,null,null,null,null,null,null,null,null,null,null,null,null,null,null,null,null,null,null,null,null,null,null,null,null,null,null,null,null,null,null,null,null,null,null,null,null,null,null,null,null,null,"$",0]
[null,"l)","Public Assistance (e.g. welfare, TAFDC, SNAP) (not included in gross income for child support)",null,null,null,null,null,null,null,null,null,null,null,null,null,null,null,null,null,null,null,null,null,null,null,null,null,null,null,null,null,null,null,null,null,null,null,null,null,null,null,null,null,null,null,"$",0]
[null,"m)",null,null,null,null,null,null,null,null,null,null,null,null,null,null,null,null,null,null,null,null,null,null,null,null,null,null,null,null,null,null,null,null,null,null,null,null,null,null,null,null,null,null,null,null,"$",0]
[null,"n)","Rental from income producing property (attach a completed Schedule B)",null,null,null,null,null,null,null,null,null,null,null,null,null,null,null,null,null,null,null,null,null,null,null,null,null,null,null,null,null,null,null,null,null,null,null,null,null,null,null,null,null,null,null,"$",{"$f":"'Schedule B'!S35+'Schedule B (2)'!S35+'Schedule B (3)'!S35+'Schedule B (4)'!S35","v":0}]
[null,"o)","Royalties and other rights",null,null,null,null,null,null,null,null,null,null,null,null,null,null,null,null,null,null,null,null,null,null,null,null,null,null,null,null,null,null,null,null,null,null,null,null,null,null,null,null,null,null,null,"$",0]
[null,"p)","Contributions from household member(s)",null,null,null,null,null,null,null,null,null,null,null,null,null,null,null,null,null,null,null,null,null,null,null,null,null,null,null,null,null,null,null,null,null,null,null,null,null,null,null,null,null,null,null,"$",0]
[null,"q)","Other (specify)"]
[null,null,null,null,null,null,null,null,null,null,null,null,null,null,null,null,null,null,null,null,null,null,null,null,null,null,null,null,null,null,null,null,null,null,null,null,null,null,null,null,null,null,null,null,null,null,"$",0]
[null,null,null,null,null,null,null,null,null,null,null,null,null,null,null,null,null,null,null,null,null,null,null,null,null,null,null,null,null,null,null,null,null,null,null,null,null,null,null,null,null,null,null,null,null,null,"$",0]
[null,null,null,null,null,null,null,null,null,null,null,null,null,null,null,null,null,null,"r) Total Gross Weekly Income/Receipts (add items a-q)",null,null,null,null,null,null,null,null,null,null,null,null,null,null,null,null,null,null,null,null,null,null,null,null,null,null,null,"$",{"$f":"SUM(AV22:BD40)","v":0}]
["CJ-D 301 S 9/15/17",null,null,null,null,null,null,null,null,null,null,null,null,null,null,null,null,null,null,null,null,null,null,null,null,null,"Page 1 of 4",null,null,null,null,null,null,null,null,null,null,null,"C.G.F."]

{"sheet":"Page 2","index":1,"n_rows":44,"n_cols":50,"rows_kept":44,"cut":false,"hidden":false,"merged":[[36,16,36,25],[37,16,37,25],[28,1,28,14],[27,48,27,57],[28,48,28,57],[29,48,29,57],[30,48,30,57],[31,48,31,57],[32,48,32,57],[33,48,33,57],[34,48,34,57],[35,48,35,57],[36,48,36,57],[37,48,37,57],[31,16,31,25],[32,16,32,25],[33,16,33,25],[34,16,34,25],[35,16,35,25],[27,16,27,25],[28,16,28,25],[29,16,29,25],[30,16,30,25],[21,47,21,56],[23,47,23,56],[2,16,2,41],[11,47,11,56],[12,47,12,56],[15,47,15,56],[16,47,16,56],[17,47,17,56],[18,1,18,31],[6,20,6,30],[7,20,7,30],[18,32,18,44],[21,1,21,14],[7,47,7,56],[8,47,8,56],[9,47,9,56],[35,32,35,43],[38,48,38,57],[7,38,7,45],[8,13,8,45],[9,13,9,45],[10,10,10,45],[7,31,7,37],[15,25,15,45],[16,8,16,45],[17,9,17,45],[11,35,11,45],[24,1,24,23],[25,31,25,32],[23,1,23,23],[18,47,18,56],[19,47,19,56],[43,0,43,7],[43,42,43,57],[39,1,39,10],[40,46,40,47],[41,46,41,47],[42,46,42,47],[40,48,40,56],[41,48,41,56],[43,24,43,32],[42,48,42,56],[42,34,42,43],[10,47,10,56],[0,0,0,57],[2,49,2,57],[1,16,1,41],[1,7,1,15],[4,0,4,56],[5,1,5,23],[3,0,3,56],[6,38,6,45],[6,31,6,37],[6,1,6,19],[6,47,6,56],[27,26,27,27],[28,26,28,27],[29,26,29,27],[30,26,30,27],[31,26,31,27],[37,26,37,27],[32,26,32,27],[33,26,33,27],[34,26,34,27],[35,26,35,27],[36,26,36,27]]}
["Commonwealth of Massachusetts"]
[null,"Division",null,null,null,null,null,{"$f":"CaseCounty","v":0},null,null,null,null,null,null,null,null,"The Trial Court"]
[null,null,null,null,null,null,null,null,null,null,null,null,null,null,null,null,"Probate and Family Court Department",null,null,null,null,null,null,null,null,null,null,null,null,null,null,null,null,null,null,null,null,null,null,null,null,null,null,"Docket No.",null,null,null,null,null,{"$f":"CaseDocket","v":0}]
["FINANCIAL STATEMENT"]
["(Short Form)"]
["3.","ITEMIZED DEDUCTIONS FROM GROSS INCOME"]
[null,"a) Federal income tax deductions (claiming",null,null,null,null,null,null,null,null,null,null,null,null,null,null,null,null,null,null,null,null,null,null,null,null,null,null,null,null,null,"exemptions)",null,null,null,null,null,null,null,null,null,null,null,null,null,null,"$",0]
[null,"b) State income tax deductions (claiming",null,null,null,null,null,null,null,null,null,null,null,null,null,null,null,null,null,null,null,null,null,null,null,null,null,null,null,null,null,"exemptions)",null,null,null,null,null,null,null,null,null,null,null,null,null,null,"$",0]
[null,"c) F.I.C.A. and Medicare",null,null,null,null,null,null,null,null,null,null,null,null,null,null,null,null,null,null,null,null,null,null,null,null,null,null,null,null,null,null,null,null,null,null,null,null,null,null,null,null,null,null,null,null,"$",0]
[null,"d) Medical Insurance",null,null,null,null,null,null,null,null,null,null,null,null,null,null,null,null,null,null,null,null,null,null,null,null,null,null,null,null,null,null,null,null,null,null,null,null,null,null,null,null,null,null,null,null,"$",0]
[null,"e) Union Dues",null,null,null,null,null,null,null,null,null,null,null,null,null,null,null,null,null,null,null,null,null,null,null,null,null,null,null,null,null,null,null,null,null,null,null,null,null,null,null,null,null,null,null,null,"$",0]
[null,null,null,null,null,null,null,null,null,null,null,null,null,null,null,null,null,null,null,"f) Total Deductions (a through e)",null,null,null,null,null,null,null,null,null,null,null,null,null,null,null,null,null,null,null,null,null,null,null,null,null,null,"$",{"$f":"SUM(AV7:BE11)","v":0}]
["4.","ADJUSTED NET WEEKLY INCOME",null,null,null,null,null,null,null,null,null,null,null,null,null,null,null,null,null,null,null,null,null,"2(r) minus 3(f)",null,null,null,null,null,null,null,null,null,null,null,null,null,null,null,null,null,null,null,null,null,null,"$",{"$f":"'Page 1'!AV41-'Page 2'!AV12","v":0}]
[]
["5.","OTHER DEDUCTIONS FROM SALARY/WAGES"]
[null,"a) Credit Union",null,null,null,null,null,null,null,null,null,null,null,null,null,null,null,null,null,null,null,null,null,null,null,null,null,null,null,null,null,null,null,null,null,null,null,null,null,null,null,null,null,null,null,null,"$",0]
[null,"b) Savings",null,null,null,null,null,null,null,null,null,null,null,null,null,null,null,null,null,null,null,null,null,null,null,null,null,null,null,null,null,null,null,null,null,null,null,null,null,null,null,null,null,null,null,null,"$",0]
[null,"c) Retirement",null,null,null,null,null,null,null,null,null,null,null,null,null,null,null,null,null,null,null,null,null,null,null,null,null,null,null,null,null,null,null,null,null,null,null,null,null,null,null,null,null,null,null,null,"$",0]
[null,"d) Other-Specify (i.e., Child Support, Deferred Compensation or 401K)",null,null,null,null,null,null,null,null,null,null,null,null,null,null,null,null,null,null,null,null,null,null,null,null,null,null,null,null,null,null,null,null,null,null,null,null,null,null,null,null,null,null,null,null,"$",0]
[null,null,null,null,null,null,null,null,null,null,null,null,null,null,null,null,null,"e) Total Deductions (a through d)",null,null,null,null,null,null,null,null,null,null,null,null,null,null,null,null,null,null,null,null,null,null,null,null,null,null,null,null,"$",{"$f":"SUM(AV16:BE19)","v":0}]
[]
["6.","NET WEEKLY INCOME",null,null,null,null,null,null,null,null,null,null,null,null,null,null,null,null,null,null,null,null,null,"4 minus 5(e)",null,null,null,null,null,null,null,null,null,null,null,null,null,null,null,null,null,null,null,null,null,null,"$",{"$f":"AV13-AV20","v":0}]
[]
["7.","GROSS YEARLY INCOME FROM PRIOR YEAR",null,null,null,null,null,null,null,null,null,null,null,null,null,null,null,null,null,null,null,null,null,null,null,null,null,null,null,null,null,null,null,null,null,null,null,null,null,null,null,null,null,null,null,null,"$",0]
[null,"(attach copy of all W-2 and 1099 forms for prior year)"]
[null,null,null,null,null,"Number of Years you have paid into Social Security"]
["8.","WEEKLY EXPENSES"]
[null,"a) Rent or Mortgage (PIT)",null,null,null,null,null,null,null,null,null,null,null,null,null,"$",0,null,null,null,null,null,null,null,null,null,null,null,null,null,null,null,"l) Life Insurance",null,null,null,null,null,null,null,null,null,null,null,null,null,null,"$",0]
[null,"b) Homeowners/Tenant Insurance",null,null,null,null,null,null,null,null,null,null,null,null,null,"$",0,null,null,null,null,null,null,null,null,null,null,null,null,null,null,null,"m) Medical Insurance",null,null,null,null,null,null,null,null,null,null,null,null,null,null,"$",0]
[null,"c) Maintenance and Repair",null,null,null,null,null,null,null,null,null,null,null,null,null,"$",0,null,null,null,null,null,null,null,null,null,null,null,null,null,null,null,"n) Uninsured Medicals",null,null,null,null,null,null,null,null,null,null,null,null,null,null,"$",0]
[null,"d) Heat",null,null,null,null,null,null,null,null,null,null,null,null,null,"$",0,null,null,null,null,null,null,null,null,null,null,null,null,null,null,null,"o) Incidentals and Toiletries",null,null,null,null,null,null,null,null,null,null,null,null,null,null,"$",0]
[null,"e) Electricity and/or Gas",null,null,null,null,null,null,null,null,null,null,null,null,null,"$",0,null,null,null,null,null,null,null,null,null,null,null,null,null,null,null,"p) Motor Vehicle Expenses",null,null,null,null,null,null,null,null,null,null,null,null,null,null,"$",0]
[null,"f) Telephone",null,null,null,null,null,null,null,null,null,null,null,null,null,"$",0,null,null,null,null,null,null,null,null,null,null,null,null,null,null,null,"q) Motor Vehicle Payment",null,null,null,null,null,null,null,null,null,null,null,null,null,null,"$",0]
[null,"g) Water/Sewer",null,null,null,null,null,null,null,null,null,null,null,null,null,"$",0,null,null,null,null,null,null,null,null,null,null,null,null,null,null,null,"r) Child Care",null,null,null,null,null,null,null,null,null,null,null,null,null,null,"$",0]
[null,"h) Food",null,null,null,null,null,null,null,null,null,null,null,null,null,"$",0,null,null,null,null,null,null,null,null,null,null,null,null,null,null,null,"s) Other (explain)"]
[null,"i) House Supplies",null,null,null,null,null,null,null,null,null,null,null,null,null,"$",0,null,null,null,null,null,null,null,null,null,null,null,null,null,null,null,null,null,null,null,null,null,null,null,null,null,null,null,null,null,null,"$",0]
[null,"j) Laundry and Cleaning",null,null,null,null,null,null,null,null,null,null,null,null,null,"$",0,null,null,null,null,null,null,null,null,null,null,null,null,null,null,null,"TOTAL LIAB'TIES (P. 3)",null,null,null,null,null,null,null,null,null,null,null,null,null,null,"$",{"$f":"'Page 3'!AX46","v":0}]
[null,"k) Clothing",null,null,null,null,null,null,null,null,null,null,null,null,null,"$",0,null,null,null,null,null,null,null,null,null,null,null,null,null,null,null,"TOTAL ADD'L EXP.",null,null,null,null,null,null,null,null,null,null,null,null,null,null,"$",{"$f":"'Additional Weekly Expenses'!H36","v":0}]
[null,null,null,null,null,null,null,null,null,null,null,null,null,null,null,null,null,"t) Total Weekly Expenses (a through s)",null,null,null,null,null,null,null,null,null,null,null,null,null,null,null,null,null,null,null,null,null,null,null,null,null,null,null,null,null,"$",{"$f":"SUM(Q28:Z38)+SUM(AW28:BF38)","v":0}]
["9.","COUNSEL FEES"]
[null,null,null,"a) Retainer amount(s) paid to your attorney(s)",null,null,null,null,null,null,null,null,null,null,null,null,null,null,null,null,null,null,null,null,null,null,null,null,null,null,null,null,null,null,null,null,null,null,null,null,null,null,null,null,null,null,"$",null,0]
[null,null,null,"b) Legal fees incurred, to date, against retainer(s)",null,null,null,null,null,null,null,null,null,null,null,null,null,null,null,null,null,null,null,null,null,null,null,null,null,null,null,null,null,null,null,null,null,null,null,null,null,null,null,null,null,null,"$",null,0]
[null,null,null,"c) Anticipated range of total legal expense to litigate this action",null,null,null,null,null,null,null,null,null,null,null,null,null,null,null,null,null,null,null,null,null,null,null,null,null,null,null,null,null,"$",0,null,null,null,null,null,null,null,null,null,null,"to","$",null,0]
["CJ-D 301 S 9/15/17",null,null,null,null,null,null,null,null,null,null,null,null,null,null,null,null,null,null,null,null,null,null,null,"Page 2 of 4",null,null,null,null,null,null,null,null,null,null,null,null,null,null,null,null,null,"C.G.F."]

{"sheet":"Page 3","index":2,"n_rows":47,"n_cols":50,"rows_kept":47,"cut":false,"hidden":false,"merged":[[45,49,45,56],[45,38,45,46],[41,47,42,47],[35,48,36,56],[37,48,38,56],[39,37,40,46],[41,37,42,46],[43,37,43,46],[34,3,34,12],[39,48,40,56],[31,47,31,55],[39,47,40,47],[43,48,43,56],[34,47,34,56],[43,3,43,35],[41,36,42,36],[39,36,40,36],[39,3,40,12],[41,3,42,12],[37,13,38,24],[39,13,40,24],[41,13,42,24],[37,3,38,12],[35,13,36,24],[35,25,36,35],[41,48,42,56],[34,13,34,24],[37,25,38,35],[39,25,40,35],[41,25,42,35],[15,2,15,41],[16,2,16,41],[17,2,17,41],[15,47,15,55],[16,47,16,55],[17,47,17,55],[11,35,11,42],[12,35,12,42],[34,25,34,35],[35,37,36,46],[9,48,9,55],[11,48,11,55],[25,2,25,42],[26,2,26,42],[27,2,27,42],[29,2,29,42],[30,2,30,42],[18,47,18,55],[19,47,19,55],[25,47,25,55],[26,47,26,55],[27,47,27,55],[19,22,19,44],[21,2,23,43],[18,18,18,44],[29,47,29,55],[30,47,30,55],[46,40,46,56],[32,1,32,28],[35,36,36,36],[35,0,36,1],[46,0,46,6],[46,24,46,32],[39,0,40,1],[41,0,42,1],[37,0,38,1],[37,36,38,36],[34,36,34,46],[34,0,34,1],[35,47,36,47],[37,47,38,47],[37,37,38,46],[35,3,36,12],[9,11,9,24],[12,48,12,55],[0,0,0,56],[1,48,1,56],[2,0,2,56],[3,0,3,56],[4,0,4,56],[1,16,1,40],[1,7,1,15],[7,2,7,5],[7,6,7,42],[8,2,8,12],[8,13,8,42],[11,11,11,25],[12,11,12,25],[9,31,9,42]]}
["Commonwealth of Massachusetts"]
[null,"Division",null,null,null,null,null,{"$f":"CaseCounty","v":0},null,null,null,null,null,null,null,null,"The Trial Court",null,null,null,null,null,null,null,null,null,null,null,null,null,null,null,null,null,null,null,null,null,null,null,null,null,null,"Docket No.",null,null,null,null,{"$f":"CaseDocket","v":0}]
["Probate and Family Court Department"]
["FINANCIAL STATEMENT"]
["(Short Form)"]
["10.","ASSETS (attach additional sheet if necessary)"]
[null,"a) Real Estate"]
[null,null,"Location"]
[null,null,"Title held in the name of "]
[null,null,"Fair Market Value $",null,null,null,null,null,null,null,null,null,null,null,null,null,null,null,null,null,null,null,null,null,null,"- Mortgage $",null,null,null,null,null,null,null,null,null,null,null,null,null,null,null,null,null,"= Equity  $",null,null,null,null,{"$f":"L10-AF10","v":0}]
[null,"b) Motor Vehicles"]
[null,null,"Fair Market Value $",null,null,null,null,null,null,null,null,null,null,null,null,null,null,null,null,null,null,null,null,null,null,null,"- Motor Vehicle Loan $",null,null,null,null,null,null,null,null,null,null,null,null,null,null,null,null,"= Equity  $",null,null,null,null,{"$f":"L12-AJ12","v":0}]
[null,null,"Fair Market Value $",null,null,null,null,null,null,null,null,null,null,null,null,null,null,null,null,null,null,null,null,null,null,null,"- Motor Vehicle Loan $",null,null,null,null,null,null,null,null,null,null,null,null,null,null,null,null,"= Equity  $",null,null,null,null,{"$f":"L13-AJ13","v":0}]
[null,"c) IRA, Keogh, Pension, Profit Sharing, Other Retirement Plans:"]
[null,null,"Financial Institution or Plan Name and Account Number"]
[null,null,null,null,null,null,null,null,null,null,null,null,null,null,null,null,null,null,null,null,null,null,null,null,null,null,null,null,null,null,null,null,null,null,null,null,null,null,null,null,null,null,null,null,null,null,"$",0]
[null,null,null,null,null,null,null,null,null,null,null,null,null,null,null,null,null,null,null,null,null,null,null,null,null,null,null,null,null,null,null,null,null,null,null,null,null,null,null,null,null,null,null,null,null,null,"$",0]
[null,null,null,null,null,null,null,null,null,null,null,null,null,null,null,null,null,null,null,null,null,null,null,null,null,null,null,null,null,null,null,null,null,null,null,null,null,null,null,null,null,null,null,null,null,null,"$",0]
[null,"d) Tax Deferred Annuity Plan(s)",null,null,null,null,null,null,null,null,null,null,null,null,null,null,null,null,null,null,null,null,null,null,null,null,null,null,null,null,null,null,null,null,null,null,null,null,null,null,null,null,null,null,null,null,"$",0]
[null,"e) Life Insurance: Present Cash Value",null,null,null,null,null,null,null,null,null,null,null,null,null,null,null,null,null,null,null,null,null,null,null,null,null,null,null,null,null,null,null,null,null,null,null,null,null,null,null,null,null,null,null,null,"$",0]
[]
[null,"f)","Savings & Checking Accounts, Money Market Accounts, Certificates of Deposit - which are held individually, jointly, in the name of another person for your benefit, or held by you for the benefit of your minor child(ren):"]
[]
[]
[null,null,"Financial Institution or Plan Name and Account Number"]
[null,null,null,null,null,null,null,null,null,null,null,null,null,null,null,null,null,null,null,null,null,null,null,null,null,null,null,null,null,null,null,null,null,null,null,null,null,null,null,null,null,null,null,null,null,null,"$",0]
[null,null,null,null,null,null,null,null,null,null,null,null,null,null,null,null,null,null,null,null,null,null,null,null,null,null,null,null,null,null,null,null,null,null,null,null,null,null,null,null,null,null,null,null,null,null,"$",0]
[null,null,null,null,null,null,null,null,null,null,null,null,null,null,null,null,null,null,null,null,null,null,null,null,null,null,null,null,null,null,null,null,null,null,null,null,null,null,null,null,null,null,null,null,null,null,"$",0]
[null,"g) Other (e.g., stocks, bonds, collections)"]
[null,null,null,null,null,null,null,null,null,null,null,null,null,null,null,null,null,null,null,null,null,null,null,null,null,null,null,null,null,null,null,null,null,null,null,null,null,null,null,null,null,null,null,null,null,null,"$",0]
[null,null,null,null,null,null,null,null,null,null,null,null,null,null,null,null,null,null,null,null,null,null,null,null,null,null,null,null,null,null,null,null,null,null,null,null,null,null,null,null,null,null,null,null,null,null,"$",0]
[null,null,null,null,null,null,null,null,null,null,null,null,null,null,null,null,"h) Total Assets (a through g )",null,null,null,null,null,null,null,null,null,null,null,null,null,null,null,null,null,null,null,null,null,null,null,null,null,null,null,null,null,"$",{"$f":"SUM(AW10:BD13)+SUM(AV16:BD31)+'Additional Assets'!L60+'Additional Assets (2)'!L60","v":0}]
["11.","LIABILITIES (Do not list expenses shown in item 8 above)"]
[]
[null,null,null,"Creditor",null,null,null,null,null,null,null,null,null,"Nature of Debt",null,null,null,null,null,null,null,null,null,null,null,"Date Incurred",null,null,null,null,null,null,null,null,null,null,"Amount Due",null,null,null,null,null,null,null,null,null,null,"Weekly Payment"]
["a)",null,null,null,null,null,null,null,null,null,null,null,null,null,null,null,null,null,null,null,null,null,null,null,null,null,null,null,null,null,null,null,null,null,null,null,"$",0,null,null,null,null,null,null,null,null,null,"$",0]
[]
["b)",null,null,null,null,null,null,null,null,null,null,null,null,null,null,null,null,null,null,null,null,null,null,null,null,null,null,null,null,null,null,null,null,null,null,null,"$",0,null,null,null,null,null,null,null,null,null,"$",0]
[]
["c)",null,null,null,null,null,null,null,null,null,null,null,null,null,null,null,null,null,null,null,null,null,null,null,null,null,null,null,null,null,null,null,null,null,null,null,"$",0,null,null,null,null,null,null,null,null,null,"$",0]
[]
["d)",null,null,null,null,null,null,null,null,null,null,null,null,null,null,null,null,null,null,null,null,null,null,null,null,null,null,null,null,null,null,null,null,null,null,null,"$",0,null,null,null,null,null,null,null,null,null,"$",0]
[]
[null,null,null,"ADDITIONAL LIABILITES FROM SCHEDULE",null,null,null,null,null,null,null,null,null,null,null,null,null,null,null,null,null,null,null,null,null,null,null,null,null,null,null,null,null,null,null,null,"$",{"$f":"'Additional Liabilities'!J32","v":0},null,null,null,null,null,null,null,null,null,"$",{"$f":"'Additional Liabilities'!L34","v":0}]
[]
[null,null,null,null,null,null,null,null,null,null,null,null,null,null,null,null,"e) Total Liabilities",null,null,null,null,null,null,null,null,null,null,null,null,null,null,null,null,null,null,null,null,"$",{"$f":"SUM(AL36:AU44)","v":0},null,null,null,null,null,null,null,null,null,"$",{"$f":"SUM(AW36:BE44)","v":0}]
["CJ-D 301 S 9/15/17",null,null,null,null,null,null,null,null,null,null,null,null,null,null,null,null,null,null,null,null,null,null,null,"Page 3 of 4",null,null,null,null,null,null,null,null,null,null,null,null,null,null,null,"C.G.F."]

{"sheet":"Page 4","index":3,"n_rows":51,"n_cols":27,"rows_kept":51,"cut":false,"hidden":false,"merged":[[50,20,50,29],[22,0,22,29],[29,2,29,8],[33,15,33,28],[37,26,37,28],[39,17,39,28],[40,18,40,28],[37,15,37,20],[37,22,37,24],[36,26,36,28],[29,15,29,28],[36,15,36,20],[36,22,36,24],[0,0,0,29],[2,24,2,29],[1,0,1,29],[2,3,2,6],[7,0,8,29],[3,0,3,29],[4,0,4,29],[5,0,5,29],[2,20,2,23],[2,7,2,19],[12,12,12,29],[31,15,31,28],[32,15,32,28],[30,15,30,28],[34,15,34,28],[19,4,20,23],[12,1,12,8],[26,0,26,29],[25,0,25,29],[27,0,27,29]]}
["Commonwealth of Massachusetts"]
["The Trial Court"]
["Division",null,null,{"$f":"CaseCounty","v":0},null,null,null,"Probate and Family Court Department",null,null,null,null,null,null,null,null,null,null,null,null,"Docket No.",null,null,null,{"$f":"CaseDocket","v":0}]
["FINANCIAL STATEMENT"]
["(Short Form)"]
["CERTIFICATION"]
[]
["I certify under the pains and penalties of perjury that the information stated on this Financial Statement and the attached schedules, if any, is complete, true, and accurate."]
[]
[]
[]
[]
["Date",null,null,null,null,null,null,null,null,null,"Signature"]
[]
[]
[]
[]
[]
[]
[null,null,null,null,"INSTRUCTIONS: In any case where an attorney is appearing for a party, said attorney MUST complete the Statement by Attorney."]
[]
[]
["STATEMENT BY ATTORNEY"]
[]
["I the undersigned attorney, am admitted to practice law in the Commonwealth of Massachusetts--am admitted pro hoc vice for"]
["the purposes of this case--and am an officer of the court. As the attorney for the party on whose behalf this Financial"]
["Statement is submitted, I hereby state to the court that I have no knowledge that any of the information contained herein is"]
["false."]
[]
["Date"]
[null,null,null,null,null,null,null,null,null,null,null,null,null,null,null,"(Signature of attorney)"]
[]
[null,null,null,null,null,null,null,null,null,null,null,null,null,null,null,"(Print name)"]
[]
[null,null,null,null,null,null,null,null,null,null,null,null,null,null,null,"(Street address)"]
[]
[]
[null,null,null,null,null,null,null,null,null,null,null,null,null,null,null,"(City/Town)",null,null,null,null,null,null,"(State)",null,null,null,"(Zip)"]
[]
[null,null,null,null,null,null,null,null,null,null,null,null,null,null,null,"Tel. No."]
[null,null,null,null,null,null,null,null,null,null,null,null,null,null,null,"B.B.O. #:"]
[]
[]
[]
[]
[]
[]
[]
[]
[]
["CJ-D 301 S 9/15/17",null,null,null,null,null,null,null,null,null,null,null,null,"Page 4 of 4",null,null,null,null,null,null,"C.G.F."]

{"sheet":"Additional Weekly Expenses","index":4,"n_rows":38,"n_cols":8,"rows_kept":38,"cut":false,"hidden":false,"merged":[[13,1,13,4],[8,1,8,4],[9,1,9,4],[10,1,10,4],[11,1,11,4],[12,1,12,4],[0,0,0,8],[3,6,3,7],[1,0,1,8],[7,0,7,3],[3,0,3,1],[3,2,3,3],[35,2,35,5],[37,5,37,8],[20,1,20,4],[23,1,23,4],[33,1,33,4],[25,1,25,4],[24,1,24,4],[29,1,29,4],[32,1,32,4],[30,1,30,4],[31,1,31,4],[21,1,21,4],[26,1,26,4],[27,1,27,4],[28,1,28,4],[14,1,14,4],[15,1,15,4],[22,1,22,4],[16,1,16,4],[17,1,17,4],[18,1,18,4],[19,1,19,4]]}
[]
["ADDITIONAL WEEKLY EXPENSES - SHORT FORM  (Section 8., continued)"]
[]
["Name:",null,{"$f":"ClientFullName","v":0},null,null,"Docket No.   ",{"$f":"CaseDocket","v":0}]
[]
["8.","WEEKLY EXPENSES (continued)"]
[]
["ITEM / DESCRIPTION",null,null,null,null,null,null,"AMOUNT"]
["a)",null,null,null,null,null,"$"]
["b)",null,null,null,null,null,"$"]
["c)",null,null,null,null,null,"$"]
["d)",null,null,null,null,null,"$"]
["e)",null,null,null,null,null,"$"]
["f)",null,null,null,null,null,"$"]
["g)",null,null,null,null,null,"$"]
["h)",null,null,null,null,null,"$"]
["i)",null,null,null,null,null,"$"]
["j)",null,null,null,null,null,"$"]
["k)",null,null,null,null,null,"$"]
["l)",null,null,null,null,null,"$"]
["m)",null,null,null,null,null,"$"]
["n)",null,null,null,null,null,"$"]
["o)",null,null,null,null,null,"$"]
["p)",null,null,null,null,null,"$"]
["q)",null,null,null,null,null,"$"]
["r)",null,null,null,null,null,"$"]
["s)",null,null,null,null,null,"$"]
["t)",null,null,null,null,null,"$"]
["u)",null,null,null,null,null,"$"]
["v)",null,null,null,null,null,"$"]
["w)",null,null,null,null,null,"$"]
["x)",null,null,null,null,null,"$"]
["y)",null,null,null,null,null,"$"]
["z)",null,null,null,null,null,"$"]
[]
[null,null,"TOTAL ADDITIONAL WEEKLY EXPENSES     ",null,null,null,null,{"$f":"SUM(H9:H34)","v":0}]
[]
[null,null,null,null,null,"c.g.f."]

{"sheet":"Additional Assets","index":5,"n_rows":61,"n_cols":12,"rows_kept":61,"cut":false,"hidden":false,"merged":[[60,9,60,11],[59,5,59,9],[0,0,0,12],[32,2,32,9],[33,2,33,8],[34,2,34,8],[3,0,3,1],[3,2,3,4],[1,0,1,12],[3,9,3,11],[14,3,14,4],[14,5,14,6],[14,7,14,8],[16,3,16,8],[5,1,5,2],[45,2,45,8],[31,2,31,8],[42,2,42,8],[38,2,38,8],[43,2,43,8],[37,2,37,8],[22,3,22,8],[13,3,13,8],[18,3,18,8],[19,3,19,4],[9,3,9,4],[6,3,6,8],[56,2,56,8],[11,3,11,8],[8,3,8,8],[9,5,9,6],[9,7,9,8],[12,3,12,8],[23,3,23,8],[19,5,19,6],[19,7,19,8],[24,3,24,4],[21,3,21,8],[7,3,7,8],[24,5,24,6],[24,7,24,8],[17,3,17,8],[57,2,57,8],[49,2,49,8],[50,2,50,8],[35,2,35,8],[51,2,51,8],[54,2,54,8],[55,2,55,8],[44,2,44,8],[36,2,36,8],[48,2,48,8],[46,2,46,8],[47,2,47,8],[39,2,39,8],[40,2,40,8]]}
[]
["ADDITIONAL ASSETS - SHORT FORM  Section 10., continued)"]
[]
["Name:",null,{"$f":"ClientFullName","v":0},null,null,null,null,null,"Docket No.   ",{"$f":"CaseDocket","v":0}]
[]
["10.","ASSETS (continued)"]
[null,"a)","Real Estate"]
[null,null,"Location"]
[null,null,"Title held in name of"]
[null,null,"Fair Market Value  $",null,null,"- Mortgage(s)        $",null,null,null,"= Equity     $",null,{"$f":"D10-H10","v":0}]
[]
[null,null,"Real Estate"]
[null,null,"Location"]
[null,null,"Title held in name of"]
[null,null,"Fair Market Value  $",null,null,"- Mortgage(s)        $",null,null,null,"= Equity     $",null,{"$f":"D15-H15","v":0}]
[]
[null,null,"Real Estate"]
[null,null,"Location"]
[null,null,"Title held in name of"]
[null,null,"Fair Market Value  $",null,null,"- Mortgage(s)        $",null,null,null,"= Equity     $",null,{"$f":"D20-H20","v":0}]
[]
[null,null,"Real Estate"]
[null,null,"Location"]
[null,null,"Title held in name of"]
[null,null,"Fair Market Value  $",null,null,"- Mortgage(s)        $",null,null,null,"= Equity     $",null,{"$f":"D25-H25","v":0}]
[]
[null,"b)","Motor Vehicles (continued)"]
[null,null,"Fair Market Value  $",null,null,"- Motor Vehicle Loan  $",null,null,null,"= Equity     $",null,{"$f":"D28-I28","v":0}]
[null,null,"Fair Market Value  $",null,null,"- Motor Vehicle Loan  $",null,null,null,"= Equity     $",null,{"$f":"D29-I29","v":0}]
[null,null,"Fair Market Value  $",null,null,"- Motor Vehicle Loan  $",null,null,null,"= Equity     $",null,{"$f":"D30-I30","v":0}]
[]
[null,"c)","IRA, Keough, Pension, Profit Sharing, Other Retirement Plans (continued):"]
[null,null,"Financial Institution or Plan Names and Account Numbers"]
[null,null,null,null,null,null,null,null,null,"$",null,0]
[null,null,null,null,null,null,null,null,null,"$",null,0]
[null,null,null,null,null,null,null,null,null,"$",null,0]
[]
[null,"d)","Tax Deferred Annuity Plan(s) (continued)"]
[null,null,null,null,null,null,null,null,null,"$",null,0]
[null,null,null,null,null,null,null,null,null,"$",null,0]
[null,null,null,null,null,null,null,null,null,"$",null,0]
[]
[null,"e)","Life Insurance: Present Cash value (continued)"]
[null,null,null,null,null,null,null,null,null,"$",null,0]
[null,null,null,null,null,null,null,null,null,"$",null,0]
[]
[null,"f)","Savings & Checking Accounts, Money Market Accounts, Certificates of Deposit - which are held individually, jointly, in the name of another person for your benefit, or held by you for the benefit of your minor child(ren):"]
[null,null,"Financial Institution or Plan Name and Account Number"]
[null,null,null,null,null,null,null,null,null,"$",null,0]
[null,null,null,null,null,null,null,null,null,"$",null,0]
[null,null,null,null,null,null,null,null,null,"$",null,0]
[null,null,null,null,null,null,null,null,null,"$",null,0]
[]
[null,"g).","Other (such as - stocks, bonds, collections) (continued)"]
[null,null,null,null,null,null,null,null,null,"$",null,0]
[null,null,null,null,null,null,null,null,null,"$",null,0]
[null,null,null,null,null,null,null,null,null,"$",null,0]
[null,null,null,null,null,null,null,null,null,"$",null,0]
[]
[null,null,null,null,null,"TOTAL ADDITIONAL ASSETS",null,null,null,null,null,{"$f":"SUM(L10:L58)","v":0}]
[null,null,null,null,null,null,null,null,null,"c.g.f."]

{"sheet":"Additional Assets (2)","index":6,"n_rows":61,"n_cols":12,"rows_kept":61,"cut":false,"hidden":false,"merged":[[60,9,60,11],[59,5,59,9],[22,3,22,8],[23,3,23,8],[55,2,55,8],[38,2,38,8],[35,2,35,8],[56,2,56,8],[57,2,57,8],[48,2,48,8],[39,2,39,8],[36,2,36,8],[37,2,37,8],[24,3,24,4],[24,5,24,6],[24,7,24,8],[0,0,0,12],[32,2,32,9],[33,2,33,8],[34,2,34,8],[3,0,3,1],[17,3,17,8],[3,2,3,4],[1,0,1,12],[14,3,14,4],[14,5,14,6],[19,7,19,8],[5,1,5,2],[31,2,31,8],[16,3,16,8],[21,3,21,8],[3,9,3,11],[51,2,51,8],[54,2,54,8],[47,2,47,8],[12,3,12,8],[14,7,14,8],[50,2,50,8],[49,2,49,8],[18,3,18,8],[19,3,19,4],[19,5,19,6],[46,2,46,8],[45,2,45,8],[40,2,40,8],[42,2,42,8],[43,2,43,8],[44,2,44,8],[13,3,13,8],[6,3,6,8],[7,3,7,8],[8,3,8,8],[9,5,9,6],[9,7,9,8],[11,3,11,8],[9,3,9,4]]}
[]
["ADDITIONAL ASSETS - SHORT FORM  Section 10., continued)"]
[]
["Name:",null,{"$f":"ClientFullName","v":0},null,null,null,null,null,"Docket No.   ",{"$f":"CaseDocket","v":0}]
[]
["10.","ASSETS (continued)"]
[null,"a)","Real Estate"]
[null,null,"Location"]
[null,null,"Title held in name of"]
[null,null,"Fair Market Value  $",null,null,"- Mortgage(s)        $",null,null,null,"= Equity     $",null,{"$f":"D10-H10","v":0}]
[]
[null,null,"Real Estate"]
[null,null,"Location"]
[null,null,"Title held in name of"]
[null,null,"Fair Market Value  $",null,null,"- Mortgage(s)        $",null,null,null,"= Equity     $",null,{"$f":"D15-H15","v":0}]
[]
[null,null,"Real Estate"]
[null,null,"Location"]
[null,null,"Title held in name of"]
[null,null,"Fair Market Value  $",null,null,"- Mortgage(s)        $",null,null,null,"= Equity     $",null,{"$f":"D20-H20","v":0}]
[]
[null,null,"Real Estate"]
[null,null,"Location"]
[null,null,"Title held in name of"]
[null,null,"Fair Market Value  $",null,null,"- Mortgage(s)        $",null,null,null,"= Equity     $",null,{"$f":"D25-H25","v":0}]
[]
[null,"b)","Motor Vehicles (continued)"]
[null,null,"Fair Market Value  $",null,null,"- Motor Vehicle Loan  $",null,null,null,"= Equity     $",null,{"$f":"D28-I28","v":0}]
[null,null,"Fair Market Value  $",null,null,"- Motor Vehicle Loan  $",null,null,null,"= Equity     $",null,{"$f":"D29-I29","v":0}]
[null,null,"Fair Market Value  $",null,null,"- Motor Vehicle Loan  $",null,null,null,"= Equity     $",null,{"$f":"D30-I30","v":0}]
[]
[null,"c)","IRA, Keough, Pension, Profit Sharing, Other Retirement Plans (continued):"]
[null,null,"Financial Institution or Plan Names and Account Numbers"]
[null,null,null,null,null,null,null,null,null,"$",null,0]
[null,null,null,null,null,null,null,null,null,"$",null,0]
[null,null,null,null,null,null,null,null,null,"$",null,0]
[]
[null,"d)","Tax Deferred Annuity Plan(s) (continued)"]
[null,null,null,null,null,null,null,null,null,"$",null,0]
[null,null,null,null,null,null,null,null,null,"$",null,0]
[null,null,null,null,null,null,null,null,null,"$",null,0]
[]
[null,"e)","Life Insurance: Present Cash value (continued)"]
[null,null,null,null,null,null,null,null,null,"$",null,0]
[null,null,null,null,null,null,null,null,null,"$",null,0]
[]
[null,"f)","Savings & Checking Accounts, Money Market Accounts, Certificates of Deposit - which are held individually, jointly, in the name of another person for your benefit, or held by you for the benefit of your minor child(ren):"]
[null,null,"Financial Institution or Plan Name and Account Number"]
[null,null,null,null,null,null,null,null,null,"$",null,0]
[null,null,null,null,null,null,null,null,null,"$",null,0]
[null,null,null,null,null,null,null,null,null,"$",null,0]
[null,null,null,null,null,null,null,null,null,"$",null,0]
[]
[null,"g).","Other (such as - stocks, bonds, collections) (continued)"]
[null,null,null,null,null,null,null,null,null,"$",null,0]
[null,null,null,null,null,null,null,null,null,"$",null,0]
[null,null,null,null,null,null,null,null,null,"$",null,0]
[null,null,null,null,null,null,null,null,null,"$",null,0]
[]
[null,null,null,null,null,"TOTAL ADDITIONAL ASSETS",null,null,null,null,null,{"$f":"SUM(L10:L58)","v":0}]
[null,null,null,null,null,null,null,null,null,"c.g.f."]

{"sheet":"Additional Liabilities","index":7,"n_rows":36,"n_cols":12,"rows_kept":36,"cut":false,"hidden":false,"merged":[[35,9,35,11],[20,2,20,4],[20,5,20,6],[21,2,21,4],[21,5,21,6],[35,3,35,8],[23,2,23,4],[23,5,23,6],[23,7,23,8],[24,2,24,4],[22,5,22,6],[22,7,22,8],[20,7,20,8],[21,7,21,8],[28,7,28,8],[27,7,27,8],[13,2,13,4],[18,5,18,6],[18,7,18,8],[10,5,10,6],[35,0,35,2],[13,7,13,8],[13,5,13,6],[14,2,14,4],[14,5,14,6],[14,7,14,8],[17,2,17,4],[34,0,34,1],[15,2,15,4],[15,5,15,6],[15,7,15,8],[16,5,16,6],[10,2,10,4],[11,2,11,4],[11,5,11,6],[12,5,12,6],[12,2,12,4],[33,5,33,9],[28,2,28,4],[28,5,28,6],[25,2,25,4],[31,2,31,8],[29,2,29,4],[26,2,26,4],[26,5,26,6],[27,2,27,4],[27,5,27,6],[25,5,25,6],[25,7,25,8],[26,7,26,8],[29,5,29,6],[29,7,29,8],[0,0,0,12],[1,0,1,12],[3,0,3,1],[3,2,3,4],[3,9,3,11],[9,2,9,4],[9,7,9,8],[24,5,24,6],[24,7,24,8],[19,5,19,6],[19,7,19,8],[22,2,22,4],[19,2,19,4],[16,2,16,4],[16,7,16,8],[17,5,17,6],[17,7,17,8],[18,2,18,4],[10,7,10,8],[11,7,11,8],[12,7,12,8]]}
[]
["ADDITIONAL LIABILITIES - SHORT FORM  Section 11., continued)"]
[]
["Name:",null,{"$f":"ClientFullName","v":0},null,null,null,null,null,"Docket No.   ",{"$f":"CaseDocket","v":0}]
[]
[]
[]
["11.","Liabilities (DO NOT list weekly expenses but DO list all liabilities) (continued)"]
[]
[null,null,"Creditor",null,null,"Nature of Debt",null,"Date Incurred",null,"Amount Due",null,"Weekly Pmt."]
[null,"a)",null,null,null,null,null,null,null,0,null,0]
[null,"b)",null,null,null,null,null,null,null,0,null,0]
[null,"c)",null,null,null,null,null,null,null,0,null,0]
[null,"d)",null,null,null,null,null,null,null,0,null,0]
[null,"e)",null,null,null,null,null,null,null,0,null,0]
[null,"f)",null,null,null,null,null,null,null,0,null,0]
[null,"g)",null,null,null,null,null,null,null,0,null,0]
[null,"h)",null,null,null,null,null,null,null,0,null,0]
[null,"i)",null,null,null,null,null,null,null,0,null,0]
[null,"j)",null,null,null,null,null,null,null,0,null,0]
[null,"k)",null,null,null,null,null,null,null,0,null,0]
[null,"l)",null,null,null,null,null,null,null,0,null,0]
[null,"m)",null,null,null,null,null,null,null,0,null,0]
[null,"n)",null,null,null,null,null,null,null,0,null,0]
[null,"o)",null,null,null,null,null,null,null,0,null,0]
[null,"p)",null,null,null,null,null,null,null,0,null,0]
[null,"q)",null,null,null,null,null,null,null,0,null,0]
[null,"r)",null,null,null,null,null,null,null,0,null,0]
[null,"s)",null,null,null,null,null,null,null,0,null,0]
[null,"t)",null,null,null,null,null,null,null,0,null,0]
[]
[null,null,"                                        TOTAL ADDITIONAL AMOUNT DUE          ",null,null,null,null,null,null,{"$f":"SUM(J11:J30)","v":0}]
[]
[null,null,null,null,null,"TOTAL ADDITIONAL WEEKLY PAYMENT",null,null,null,null,null,{"$f":"SUM(L11:L30)","v":0}]
[]
[null,null,null,null,null,null,null,null,null,"c.g.f."]

{"sheet":"Schedule A (Page 1)","index":8,"n_rows":49,"n_cols":20,"rows_kept":49,"cut":false,"hidden":true,"merged":[[48,0,48,5],[12,19,12,26],[19,19,19,26],[6,0,7,6],[12,0,12,2],[13,19,13,26],[14,19,14,26],[6,19,7,26],[13,0,13,2],[21,19,21,26],[11,5,11,16],[12,3,12,16],[20,19,20,26],[15,19,15,26],[16,19,16,26],[20,0,20,2],[17,5,17,16],[18,5,18,16],[19,4,19,16],[20,3,20,16],[17,1,17,4],[19,0,19,3],[21,6,21,16],[21,0,21,5],[9,0,9,6],[11,0,11,4],[11,19,11,26],[0,0,1,26],[2,0,2,1],[4,0,4,26],[2,15,2,17],[2,18,2,26],[2,2,2,10],[2,11,2,13],[45,19,45,26],[46,19,46,26],[48,12,48,16],[48,19,48,27],[44,1,44,16],[45,1,45,16],[44,19,44,26],[14,0,14,3],[17,19,17,26],[18,19,18,26],[22,19,22,26],[23,19,23,26],[24,19,24,26],[25,19,25,26],[25,1,25,16],[26,1,26,16],[28,5,28,16],[27,0,27,6],[36,19,36,26],[29,19,29,26],[30,19,30,26],[26,19,26,26],[27,19,27,26],[42,19,42,26],[43,19,43,26],[37,19,37,26],[38,19,38,26],[13,3,13,16],[14,4,14,16],[15,3,15,16],[16,4,16,16],[40,19,40,26],[30,0,30,3],[22,0,22,6],[23,3,23,16],[24,0,24,14],[23,0,23,1],[22,7,22,16],[41,19,41,26],[38,3,38,16],[31,19,31,26],[32,19,32,26],[33,19,33,26],[28,19,28,26],[35,19,35,26],[34,19,34,26],[32,0,32,6],[29,0,29,7],[34,0,34,5],[37,0,37,2],[35,7,35,16],[42,3,42,16],[39,3,39,16],[39,19,39,26],[15,1,15,2],[16,1,16,3],[33,0,33,6],[28,0,28,3],[27,8,27,16],[35,0,35,5],[18,1,18,3],[29,8,29,16],[30,5,30,16],[31,0,31,5],[31,6,31,16],[32,7,32,16],[33,7,33,16],[34,6,34,16],[36,0,36,1],[43,0,43,5],[40,0,40,5],[41,0,41,4],[42,0,42,1],[39,0,39,1],[40,7,40,16],[41,6,41,16],[38,0,38,1],[36,3,36,16],[37,3,37,16]]}
["FINANCIAL STATEMENT SCHEDULE A"]
[]
["Name:",null,{"$f":"ClientFullName","v":0},null,null,null,null,null,null,null,null,null,null,null,null,"Docket No.",null,null,{"$f":"CaseDocket","v":0}]
[]
["MONTHLY SELF-EMPLOYMENT OR BUSINESS INCOME"]
[]
["GROSS MONTHLY RECEIPTS",null,null,null,null,null,null,null,null,null,null,null,null,null,null,null,null,null,null,0]
[]
[]
["Monthly Business Expenses"]
[]
["Cost of goods sold",null,null,null,null,null,null,null,null,null,null,null,null,null,null,null,null,null,"$",0]
["Advertising",null,null,null,null,null,null,null,null,null,null,null,null,null,null,null,null,null,"$",0]
["Bad Debts",null,null,null,null,null,null,null,null,null,null,null,null,null,null,null,null,null,"$",0]
["Motor Vehicles",null,null,null,null,null,null,null,null,null,null,null,null,null,null,null,null,null,"$",0]
[null,"Gas",null,null,null,null,null,null,null,null,null,null,null,null,null,null,null,null,"$",0]
[null,"Insurance",null,null,null,null,null,null,null,null,null,null,null,null,null,null,null,null,"$",0]
[null,"Maintenance",null,null,null,null,null,null,null,null,null,null,null,null,null,null,null,null,"$",0]
[null,"Registration",null,null,null,null,null,null,null,null,null,null,null,null,null,null,null,null,"$",0]
["Commissions",null,null,null,null,null,null,null,null,null,null,null,null,null,null,null,null,null,"$",0]
["Depletion",null,null,null,null,null,null,null,null,null,null,null,null,null,null,null,null,null,"$",0]
["Dues and Publications",null,null,null,null,null,null,null,null,null,null,null,null,null,null,null,null,null,"$",0]
["Employee Benefit Programs",null,null,null,null,null,null,null,null,null,null,null,null,null,null,null,null,null,"$",0]
["Freight",null,null,null,null,null,null,null,null,null,null,null,null,null,null,null,null,null,"$",0]
["Insurance (other than health), please specify type of insurance:"]
[null,null,null,null,null,null,null,null,null,null,null,null,null,null,null,null,null,null,"$",0]
[null,null,null,null,null,null,null,null,null,null,null,null,null,null,null,null,null,null,"$",0]
["Interest on mortgage to banks",null,null,null,null,null,null,null,null,null,null,null,null,null,null,null,null,null,"$",0]
["Interest on loans",null,null,null,null,null,null,null,null,null,null,null,null,null,null,null,null,null,"$",0]
["Legal and Professional services",null,null,null,null,null,null,null,null,null,null,null,null,null,null,null,null,null,"$",0]
["Office expenses",null,null,null,null,null,null,null,null,null,null,null,null,null,null,null,null,null,"$",0]
["Laundry and cleaning",null,null,null,null,null,null,null,null,null,null,null,null,null,null,null,null,null,"$",0]
["Pension and profit sharing",null,null,null,null,null,null,null,null,null,null,null,null,null,null,null,null,null,"$",0]
["Rent on leased equipment",null,null,null,null,null,null,null,null,null,null,null,null,null,null,null,null,null,"$",0]
["Machinery/Equipment",null,null,null,null,null,null,null,null,null,null,null,null,null,null,null,null,null,"$",0]
["Other business property",null,null,null,null,null,null,null,null,null,null,null,null,null,null,null,null,null,"$",0]
["Repairs",null,null,null,null,null,null,null,null,null,null,null,null,null,null,null,null,null,"$",0]
["Supplies",null,null,null,null,null,null,null,null,null,null,null,null,null,null,null,null,null,"$",0]
["Taxes",null,null,null,null,null,null,null,null,null,null,null,null,null,null,null,null,null,"$",0]
["Travel",null,null,null,null,null,null,null,null,null,null,null,null,null,null,null,null,null,"$",0]
["Meals and entertainment",null,null,null,null,null,null,null,null,null,null,null,null,null,null,null,null,null,"$",0]
["Utilities and phones",null,null,null,null,null,null,null,null,null,null,null,null,null,null,null,null,null,"$",0]
["Wages",null,null,null,null,null,null,null,null,null,null,null,null,null,null,null,null,null,"$",0]
["Other expenses (specify):"]
[null,null,null,null,null,null,null,null,null,null,null,null,null,null,null,null,null,null,"$",0]
[null,null,null,null,null,null,null,null,null,null,null,null,null,null,null,null,null,null,"$",0]
[]
[]
["CJ-D 301 Schedule A (4/07)",null,null,null,null,null,null,null,null,null,null,null,"Page 1 of 2",null,null,null,null,null,null,"c.g.f."]

{"sheet":"Schedule A (Page 2)","index":9,"n_rows":48,"n_cols":20,"rows_kept":48,"cut":false,"hidden":true,"merged":[[14,19,14,25],[14,8,14,18],[0,0,1,26],[23,2,23,7],[23,8,23,18],[23,19,23,25],[16,19,16,25],[14,2,14,7],[8,0,9,26],[22,19,22,25],[22,2,22,7],[19,8,19,18],[2,0,3,6],[2,19,3,26],[5,0,7,17],[5,19,6,26],[12,1,12,27],[16,2,16,7],[16,8,16,18],[47,12,47,16],[47,19,47,27],[19,2,19,7],[25,2,25,7],[25,8,25,18],[18,8,18,18],[19,19,19,25],[35,1,36,9],[35,19,36,26],[33,16,33,26],[32,1,32,11],[33,1,33,11],[26,2,26,7],[38,0,39,0],[35,0,36,0],[26,19,26,25],[32,16,32,26],[38,1,39,10],[38,19,39,26],[30,1,30,25],[20,19,20,25],[26,8,26,18],[25,19,25,25],[24,2,24,7],[24,8,24,18],[15,19,15,25],[47,0,47,5],[24,19,24,25],[15,2,15,7],[15,8,15,18],[22,8,22,18],[17,8,17,18],[18,2,18,7],[17,2,17,7],[17,19,17,25],[21,8,21,18],[18,19,18,25],[21,2,21,7],[21,19,21,25],[20,2,20,7],[20,8,20,18]]}
["FINANCIAL STATEMENT SCHEDULE A"]
[]
["TOTAL MONTHLY EXPENSES",null,null,null,null,null,null,null,null,null,null,null,null,null,null,null,null,null,null,{"$f":"SUM('Schedule A (Page 1)'!T12:AA46)","v":0}]
[]
[]
["WEEKLY BUSINESS INCOME (Gross monthly receipts less total monthly expenses divided by 4.3) Enter this amount in Section II, line (d) of CJ-D 301-L or Section 2(d) of CJ-D 301-S.",null,null,null,null,null,null,null,null,null,null,null,null,null,null,null,null,null,null,{"$f":"('Schedule A (Page 1)'!T7-'Schedule A (Page 2)'!T3)/4.3","v":0}]
[]
[]
["NATURE OF SELF-EMPLOYMENT OR BUSINESS"]
[]
["1.","Is this business seasonal in nature?"]
[]
["2.","If seasonal business, please specify percentage of income received and expenses incurred for each month of the year."]
[]
[null,null,"MONTH",null,null,null,null,null,"PERCENTAGE OF INCOME RECEIVED",null,null,null,null,null,null,null,null,null,null,"EXPENSES INCURRED"]
[null,null,"January"]
[null,null,"February"]
[null,null,"March"]
[null,null,"April"]
[null,null,"May"]
[null,null,"June"]
[null,null,"July"]
[null,null,"August"]
[null,null,"September"]
[null,null,"October"]
[null,null,"November"]
[null,null,"December"]
[]
["3.","State whether your business accounts on a calendar year basis or fiscal year basis:"]
[]
["4.","If your business accounts on a fiscal year basis, give the starting and ending dates of your chosen fiscal year:"]
[]
[]
[null,"starting",null,null,null,null,null,null,null,null,null,null,null,null,null,null,"ending"]
[]
["5.","State your gross receipts, year to date:"]
[]
[]
["6.","State your gross expenses, year to date:"]
[]
[]
[]
[]
[]
[]
[]
[]
["CJ-D 301 Schedule A (4/07)",null,null,null,null,null,null,null,null,null,null,null,"Page 2 of 2",null,null,null,null,null,null,"c.g.f."]

{"sheet":"Schedule B","index":10,"n_rows":46,"n_cols":20,"rows_kept":46,"cut":false,"hidden":true,"merged":[[45,0,45,5],[45,19,45,27],[43,19,43,26],[29,19,29,26],[0,0,1,26],[2,0,2,1],[4,0,4,26],[34,18,35,26],[30,1,30,7],[6,0,7,6],[34,1,36,15],[30,18,30,26],[45,12,45,16],[19,19,19,26],[20,19,20,26],[6,19,7,26],[11,1,11,3],[19,2,19,15],[2,15,2,17],[2,18,2,26],[13,19,13,26],[14,19,14,26],[16,1,16,7],[15,19,15,26],[9,0,9,6],[11,19,11,26],[2,2,2,10],[2,11,2,13],[23,19,23,26],[18,19,18,26],[21,1,21,2],[20,1,20,8],[12,19,12,26],[16,19,16,26],[13,1,13,3],[14,1,14,7],[12,1,12,6],[21,19,21,26],[22,19,22,26],[15,1,15,4],[17,1,17,6],[18,2,18,15],[17,19,17,26],[28,2,28,15],[27,2,27,15],[24,19,24,26],[25,19,25,26],[26,19,26,26],[27,19,27,26],[28,19,28,26]]}
["FINANCIAL STATEMENT SCHEDULE B"]
[]
["Name:",null,{"$f":"ClientFullName","v":0},null,null,null,null,null,null,null,null,null,null,null,null,"Docket No.",null,null,{"$f":"CaseDocket","v":0}]
[]
["RENT FROM INCOME PRODUCING PROPERTY"]
[]
["ANNUAL RENT RECEIVED",null,null,null,null,null,null,null,null,null,null,null,null,null,null,null,null,null,null,0]
[]
[]
["ANNUAL RENTAL EXPENSES"]
[]
[null,"Advertising",null,null,null,null,null,null,null,null,null,null,null,null,null,null,null,null,"$",0]
[null,"Motor Vehicle and Travel",null,null,null,null,null,null,null,null,null,null,null,null,null,null,null,null,"$",0]
[null,"Insurance",null,null,null,null,null,null,null,null,null,null,null,null,null,null,null,null,"$",0]
[null,"Cleaning and maintenance",null,null,null,null,null,null,null,null,null,null,null,null,null,null,null,null,"$",0]
[null,"Commissions",null,null,null,null,null,null,null,null,null,null,null,null,null,null,null,null,"$",0]
[null,"Interest on mortgage to banks",null,null,null,null,null,null,null,null,null,null,null,null,null,null,null,null,"$",0]
[null,"Other interest (specify):"]
[null,null,null,null,null,null,null,null,null,null,null,null,null,null,null,null,null,null,"$",0]
[null,null,null,null,null,null,null,null,null,null,null,null,null,null,null,null,null,null,"$",0]
[null,"Legal and professional services",null,null,null,null,null,null,null,null,null,null,null,null,null,null,null,null,"$",0]
[null,"Repairs",null,null,null,null,null,null,null,null,null,null,null,null,null,null,null,null,"$",0]
[null,"Supplies",null,null,null,null,null,null,null,null,null,null,null,null,null,null,null,null,"$",0]
[null,"Taxes",null,null,null,null,null,null,null,null,null,null,null,null,null,null,null,null,"$",0]
[null,"Utilities",null,null,null,null,null,null,null,null,null,null,null,null,null,null,null,null,"$",0]
[null,"Wages",null,null,null,null,null,null,null,null,null,null,null,null,null,null,null,null,"$",0]
[null,"Other expenses: (specify):"]
[null,null,null,null,null,null,null,null,null,null,null,null,null,null,null,null,null,null,"$",0]
[null,null,null,null,null,null,null,null,null,null,null,null,null,null,null,null,null,null,"$",0]
[]
[null,"TOTAL ANNUAL EXPENSES",null,null,null,null,null,null,null,null,null,null,null,null,null,null,null,null,{"$f":"SUM(T12:AA29)","v":0}]
[]
[]
[]
[null,"TOTAL WEEKLY RENTAL INCOME (Gross rent received less expenses, divided by 52). Enter this amount in Section II, line (n) of CJ-D 301-L or Section 2(n) of CJ-D 301-S",null,null,null,null,null,null,null,null,null,null,null,null,null,null,null,null,{"$f":"(T7-S31)/52","v":0}]
[]
[]
[]
[]
[]
[]
[]
[]
[]
[]
["CJ-D 301 Schedule B (4/07)",null,null,null,null,null,null,null,null,null,null,null,null,null,null,null,null,null,null,"c.g.f."]

{"sheet":"Schedule B (2)","index":11,"n_rows":46,"n_cols":20,"rows_kept":46,"cut":false,"hidden":true,"merged":[[22,19,22,26],[45,0,45,5],[45,12,45,16],[45,19,45,27],[26,19,26,26],[27,19,27,26],[34,18,35,26],[28,19,28,26],[43,19,43,26],[15,19,15,26],[16,19,16,26],[17,19,17,26],[18,19,18,26],[14,19,14,26],[21,1,21,2],[30,1,30,7],[34,1,36,15],[18,2,18,15],[30,18,30,26],[29,19,29,26],[21,19,21,26],[28,2,28,15],[27,2,27,15],[19,2,19,15],[23,19,23,26],[24,19,24,26],[25,19,25,26],[19,19,19,26],[20,19,20,26],[20,1,20,8],[14,1,14,7],[15,1,15,4],[16,1,16,7],[17,1,17,6],[11,1,11,3],[12,1,12,6],[13,1,13,3],[0,0,1,26],[2,0,2,1],[4,0,4,26],[2,15,2,17],[2,18,2,26],[2,2,2,10],[2,11,2,13],[13,19,13,26],[6,0,7,6],[6,19,7,26],[9,0,9,6],[11,19,11,26],[12,19,12,26]]}
["FINANCIAL STATEMENT SCHEDULE B"]
[]
["Name:",null,{"$f":"ClientFullName","v":0},null,null,null,null,null,null,null,null,null,null,null,null,"Docket No.",null,null,{"$f":"CaseDocket","v":0}]
[]
["RENT FROM INCOME PRODUCING PROPERTY"]
[]
["ANNUAL RENT RECEIVED",null,null,null,null,null,null,null,null,null,null,null,null,null,null,null,null,null,null,0]
[]
[]
["ANNUAL RENTAL EXPENSES"]
[]
[null,"Advertising",null,null,null,null,null,null,null,null,null,null,null,null,null,null,null,null,"$",0]
[null,"Motor Vehicle and Travel",null,null,null,null,null,null,null,null,null,null,null,null,null,null,null,null,"$",0]
[null,"Insurance",null,null,null,null,null,null,null,null,null,null,null,null,null,null,null,null,"$",0]
[null,"Cleaning and maintenance",null,null,null,null,null,null,null,null,null,null,null,null,null,null,null,null,"$",0]
[null,"Commissions",null,null,null,null,null,null,null,null,null,null,null,null,null,null,null,null,"$",0]
[null,"Interest on mortgage to banks",null,null,null,null,null,null,null,null,null,null,null,null,null,null,null,null,"$",0]
[null,"Other interest (specify):"]
[null,null,null,null,null,null,null,null,null,null,null,null,null,null,null,null,null,null,"$",0]
[null,null,null,null,null,null,null,null,null,null,null,null,null,null,null,null,null,null,"$",0]
[null,"Legal and professional services",null,null,null,null,null,null,null,null,null,null,null,null,null,null,null,null,"$",0]
[null,"Repairs",null,null,null,null,null,null,null,null,null,null,null,null,null,null,null,null,"$",0]
[null,"Supplies",null,null,null,null,null,null,null,null,null,null,null,null,null,null,null,null,"$",0]
[null,"Taxes",null,null,null,null,null,null,null,null,null,null,null,null,null,null,null,null,"$",0]
[null,"Utilities",null,null,null,null,null,null,null,null,null,null,null,null,null,null,null,null,"$",0]
[null,"Wages",null,null,null,null,null,null,null,null,null,null,null,null,null,null,null,null,"$",0]
[null,"Other expenses: (specify):"]
[null,null,null,null,null,null,null,null,null,null,null,null,null,null,null,null,null,null,"$",0]
[null,null,null,null,null,null,null,null,null,null,null,null,null,null,null,null,null,null,"$",0]
[]
[null,"TOTAL ANNUAL EXPENSES",null,null,null,null,null,null,null,null,null,null,null,null,null,null,null,null,{"$f":"SUM(T12:AA29)","v":0}]
[]
[]
[]
[null,"TOTAL WEEKLY RENTAL INCOME (Gross rent received less expenses, divided by 52). Enter this amount in Section II, line (n) of CJ-D 301-L or Section 2(n) of CJ-D 301-S",null,null,null,null,null,null,null,null,null,null,null,null,null,null,null,null,{"$f":"(T7-S31)/52","v":0}]
[]
[]
[]
[]
[]
[]
[]
[]
[]
[]
["CJ-D 301 Schedule B (4/07)",null,null,null,null,null,null,null,null,null,null,null,null,null,null,null,null,null,null,"c.g.f."]

{"sheet":"Schedule B (3)","index":12,"n_rows":46,"n_cols":20,"rows_kept":46,"cut":false,"hidden":true,"merged":[[0,0,1,26],[2,0,2,1],[4,0,4,26],[2,15,2,17],[2,18,2,26],[2,2,2,10],[2,11,2,13],[15,19,15,26],[28,19,28,26],[22,19,22,26],[23,19,23,26],[24,19,24,26],[21,19,21,26],[26,19,26,26],[14,19,14,26],[6,0,7,6],[11,19,11,26],[12,1,12,6],[13,1,13,3],[9,0,9,6],[6,19,7,26],[12,19,12,26],[13,19,13,26],[11,1,11,3],[14,1,14,7],[15,1,15,4],[16,1,16,7],[17,1,17,6],[34,1,36,15],[30,1,30,7],[28,2,28,15],[27,2,27,15],[45,12,45,16],[18,2,18,15],[19,2,19,15],[20,1,20,8],[21,1,21,2],[45,0,45,5],[45,19,45,27],[16,19,16,26],[17,19,17,26],[18,19,18,26],[43,19,43,26],[30,18,30,26],[20,19,20,26],[27,19,27,26],[34,18,35,26],[29,19,29,26],[19,19,19,26],[25,19,25,26]]}
["FINANCIAL STATEMENT SCHEDULE B"]
[]
["Name:",null,{"$f":"ClientFullName","v":0},null,null,null,null,null,null,null,null,null,null,null,null,"Docket No.",null,null,{"$f":"CaseDocket","v":0}]
[]
["RENT FROM INCOME PRODUCING PROPERTY"]
[]
["ANNUAL RENT RECEIVED",null,null,null,null,null,null,null,null,null,null,null,null,null,null,null,null,null,null,0]
[]
[]
["ANNUAL RENTAL EXPENSES"]
[]
[null,"Advertising",null,null,null,null,null,null,null,null,null,null,null,null,null,null,null,null,"$",0]
[null,"Motor Vehicle and Travel",null,null,null,null,null,null,null,null,null,null,null,null,null,null,null,null,"$",0]
[null,"Insurance",null,null,null,null,null,null,null,null,null,null,null,null,null,null,null,null,"$",0]
[null,"Cleaning and maintenance",null,null,null,null,null,null,null,null,null,null,null,null,null,null,null,null,"$",0]
[null,"Commissions",null,null,null,null,null,null,null,null,null,null,null,null,null,null,null,null,"$",0]
[null,"Interest on mortgage to banks",null,null,null,null,null,null,null,null,null,null,null,null,null,null,null,null,"$",0]
[null,"Other interest (specify):"]
[null,null,null,null,null,null,null,null,null,null,null,null,null,null,null,null,null,null,"$",0]
[null,null,null,null,null,null,null,null,null,null,null,null,null,null,null,null,null,null,"$",0]
[null,"Legal and professional services",null,null,null,null,null,null,null,null,null,null,null,null,null,null,null,null,"$",0]
[null,"Repairs",null,null,null,null,null,null,null,null,null,null,null,null,null,null,null,null,"$",0]
[null,"Supplies",null,null,null,null,null,null,null,null,null,null,null,null,null,null,null,null,"$",0]
[null,"Taxes",null,null,null,null,null,null,null,null,null,null,null,null,null,null,null,null,"$",0]
[null,"Utilities",null,null,null,null,null,null,null,null,null,null,null,null,null,null,null,null,"$",0]
[null,"Wages",null,null,null,null,null,null,null,null,null,null,null,null,null,null,null,null,"$",0]
[null,"Other expenses: (specify):"]
[null,null,null,null,null,null,null,null,null,null,null,null,null,null,null,null,null,null,"$",0]
[null,null,null,null,null,null,null,null,null,null,null,null,null,null,null,null,null,null,"$",0]
[]
[null,"TOTAL ANNUAL EXPENSES",null,null,null,null,null,null,null,null,null,null,null,null,null,null,null,null,{"$f":"SUM(T12:AA29)","v":0}]
[]
[]
[]
[null,"TOTAL WEEKLY RENTAL INCOME (Gross rent received less expenses, divided by 52). Enter this amount in Section II, line (n) of CJ-D 301-L or Section 2(n) of CJ-D 301-S",null,null,null,null,null,null,null,null,null,null,null,null,null,null,null,null,{"$f":"(T7-S31)/52","v":0}]
[]
[]
[]
[]
[]
[]
[]
[]
[]
[]
["CJ-D 301 Schedule B (4/07)",null,null,null,null,null,null,null,null,null,null,null,null,null,null,null,null,null,null,"c.g.f."]

{"sheet":"Schedule B (4)","index":13,"n_rows":46,"n_cols":20,"rows_kept":46,"cut":false,"hidden":true,"merged":[[45,19,45,27],[16,19,16,26],[17,19,17,26],[18,19,18,26],[43,19,43,26],[30,18,30,26],[20,19,20,26],[27,19,27,26],[34,18,35,26],[29,19,29,26],[26,19,26,26],[25,19,25,26],[34,1,36,15],[30,1,30,7],[28,2,28,15],[27,2,27,15],[19,2,19,15],[20,1,20,8],[21,1,21,2],[45,12,45,16],[45,0,45,5],[14,19,14,26],[6,0,7,6],[11,19,11,26],[12,1,12,6],[13,1,13,3],[9,0,9,6],[6,19,7,26],[12,19,12,26],[13,19,13,26],[11,1,11,3],[28,19,28,26],[22,19,22,26],[23,19,23,26],[24,19,24,26],[15,19,15,26],[21,19,21,26],[19,19,19,26],[18,2,18,15],[0,0,1,26],[2,0,2,1],[4,0,4,26],[2,2,2,13],[2,15,2,17],[2,18,2,26],[14,1,14,7],[15,1,15,4],[16,1,16,7],[17,1,17,6]]}
["FINANCIAL STATEMENT SCHEDULE B"]
[]
["Name:",null,{"$f":"ClientFullName","v":0},null,null,null,null,null,null,null,null,null,null,null,null,"Docket No.",null,null,{"$f":"CaseDocket","v":0}]
[]
["RENT FROM INCOME PRODUCING PROPERTY"]
[]
["ANNUAL RENT RECEIVED",null,null,null,null,null,null,null,null,null,null,null,null,null,null,null,null,null,null,0]
[]
[]
["ANNUAL RENTAL EXPENSES"]
[]
[null,"Advertising",null,null,null,null,null,null,null,null,null,null,null,null,null,null,null,null,"$",0]
[null,"Motor Vehicle and Travel",null,null,null,null,null,null,null,null,null,null,null,null,null,null,null,null,"$",0]
[null,"Insurance",null,null,null,null,null,null,null,null,null,null,null,null,null,null,null,null,"$",0]
[null,"Cleaning and maintenance",null,null,null,null,null,null,null,null,null,null,null,null,null,null,null,null,"$",0]
[null,"Commissions",null,null,null,null,null,null,null,null,null,null,null,null,null,null,null,null,"$",0]
[null,"Interest on mortgage to banks",null,null,null,null,null,null,null,null,null,null,null,null,null,null,null,null,"$",0]
[null,"Other interest (specify):"]
[null,null,null,null,null,null,null,null,null,null,null,null,null,null,null,null,null,null,"$",0]
[null,null,null,null,null,null,null,null,null,null,null,null,null,null,null,null,null,null,"$",0]
[null,"Legal and professional services",null,null,null,null,null,null,null,null,null,null,null,null,null,null,null,null,"$",0]
[null,"Repairs",null,null,null,null,null,null,null,null,null,null,null,null,null,null,null,null,"$",0]
[null,"Supplies",null,null,null,null,null,null,null,null,null,null,null,null,null,null,null,null,"$",0]
[null,"Taxes",null,null,null,null,null,null,null,null,null,null,null,null,null,null,null,null,"$",0]
[null,"Utilities",null,null,null,null,null,null,null,null,null,null,null,null,null,null,null,null,"$",0]
[null,"Wages",null,null,null,null,null,null,null,null,null,null,null,null,null,null,null,null,"$",0]
[null,"Other expenses: (specify):"]
[null,null,null,null,null,null,null,null,null,null,null,null,null,null,null,null,null,null,"$",0]
[null,null,null,null,null,null,null,null,null,null,null,null,null,null,null,null,null,null,"$",0]
[]
[null,"TOTAL ANNUAL EXPENSES",null,null,null,null,null,null,null,null,null,null,null,null,null,null,null,null,{"$f":"SUM(T12:AA29)","v":0}]
[]
[]
[]
[null,"TOTAL WEEKLY RENTAL INCOME (Gross rent received less expenses, divided by 52). Enter this amount in Section II, line (n) of CJ-D 301-L or Section 2(n) of CJ-D 301-S",null,null,null,null,null,null,null,null,null,null,null,null,null,null,null,null,{"$f":"(T7-S31)/52","v":0}]
[]
[]
[]
[]
[]
[]
[]
[]
[]
[]
["CJ-D 301 Schedule B (4/07)",null,null,null,null,null,null,null,null,null,null,null,null,null,null,null,null,null,null,"c.g.f."]

{"sheet":"Explanatory Notes","index":14,"n_rows":8,"n_cols":2,"rows_kept":8,"cut":false,"hidden":false,"merged":[[1,0,1,1],[3,0,3,1],[2,0,2,1],[0,0,0,1]]}
[]
["EXPLANATORY NOTES"]
["TO FINANCIAL STATEMENT OF"]
[{"$f":"ClientFullName","v":0}]
[]
["#","Explanation of Notation"]
[]
[1,"Enter explanatory note here and <TAB> to next data entry field."]